[Event "Titled Tuesday Blitz May 4 2021"]
[White "Piesik, Piotr"]
[Black "Novikov, Evgenij"]
[WhiteFideId "1136194"]
[BlackFideId "4125380"]
[WhiteElo "2369"]
[BlackElo "2242"]
[Result "1-0"]
[Round "11"]
[TimeControl "180+1"]
[Date "2021.05.04"]
[WhiteClock "0:00:10"]
[BlackClock "0:00:07"]

1. Nf3 {[%clk 0:03:00]}  d5 {[%clk 0:02:59]} 2. g3 {[%clk 0:03:00]}  Bg4 {[%clk 0:02:59]} 3. Bg2 {[%clk 0:03:00]}  Bxf3 {[%clk 0:02:59]} 4. Bxf3 {[%clk 0:03:00]}  c6 {[%clk 0:03:00]} 5. O-O {[%clk 0:03:00]}  Nf6 {[%clk 0:03:00]} 6. d3 {[%clk 0:03:01]}  e6 {[%clk 0:02:57]} 7. Nd2 {[%clk 0:03:00]}  Nbd7 {[%clk 0:02:57]} 8. e4 {[%clk 0:03:00]}  Bc5 {[%clk 0:02:54]} 9. Qe2 {[%clk 0:03:00]}  Qc7 {[%clk 0:02:54]} 10. Nb3 {[%clk 0:02:58]}  Be7 {[%clk 0:02:46]} 11. Bf4 {[%clk 0:02:58]}  Bd6 {[%clk 0:02:35]} 12. Be3 {[%clk 0:02:51]}  a5 {[%clk 0:02:32]} 13. a4 {[%clk 0:02:50]}  h5 {[%clk 0:02:20]} 14. Bg2 {[%clk 0:02:44]}  Ng4 {[%clk 0:02:01]} 15. h3 {[%clk 0:02:44]}  Nxe3 {[%clk 0:02:01]} 16. Qxe3 {[%clk 0:02:45]}  h4 {[%clk 0:01:55]} 17. g4 {[%clk 0:02:24]}  Bf4 {[%clk 0:01:52]} 18. Qe2 {[%clk 0:02:24]}  O-O {[%clk 0:01:39]} 19. Nd4 {[%clk 0:02:19]}  Qe5 {[%clk 0:01:31]} 20. Nf3 {[%clk 0:02:18]}  Qf6 {[%clk 0:01:29]} 21. d4 {[%clk 0:02:14]}  dxe4 {[%clk 0:01:27]} 22. Qxe4 {[%clk 0:02:14]}  g5 {[%clk 0:01:20]} 23. Rfe1 {[%clk 0:02:11]}  Rfd8 {[%clk 0:01:19]} 24. c3 {[%clk 0:02:08]}  Kg7 {[%clk 0:01:14]} 25. Rab1 {[%clk 0:02:07]}  Nb6 {[%clk 0:01:04]} 26. Qc2 {[%clk 0:01:59]}  Bc7 {[%clk 0:00:57]} 27. Ne5 {[%clk 0:01:54]}  Nd5 {[%clk 0:00:57]} 28. Bxd5 {[%clk 0:01:51]}  Rxd5 {[%clk 0:00:43]} 29. Nd3 {[%clk 0:01:44]}  Rad8 {[%clk 0:00:39]} 30. Re3 {[%clk 0:01:43]}  e5 {[%clk 0:00:35]} 31. dxe5 {[%clk 0:01:41]}  Bxe5 {[%clk 0:00:36]} 32. Nxe5 {[%clk 0:01:40]}  Rxe5 {[%clk 0:00:37]} 33. Rbe1 {[%clk 0:01:40]}  Rde8 {[%clk 0:00:37]} 34. Qd3 {[%clk 0:01:31]}  Rxe3 {[%clk 0:00:36]} 35. Rxe3 {[%clk 0:01:31]}  Rd8 {[%clk 0:00:34]} 36. Qe4 {[%clk 0:01:26]}  Rd1+ {[%clk 0:00:31]} 37. Kg2 {[%clk 0:01:26]}  Rd2 {[%clk 0:00:31]} 38. Rf3 {[%clk 0:01:26]}  Qd6 {[%clk 0:00:28]} 39. Qf5 {[%clk 0:01:19]}  f6 {[%clk 0:00:25]} 40. Qxa5 {[%clk 0:01:11]}  Rxb2 {[%clk 0:00:22]} 41. Qf5 {[%clk 0:01:03]}  b5 {[%clk 0:00:21]} 42. axb5 {[%clk 0:01:02]}  Rxb5 {[%clk 0:00:20]} 43. Qd3 {[%clk 0:00:43]}  Rd5 {[%clk 0:00:20]} 44. Qa6 {[%clk 0:00:39]}  Qd7 {[%clk 0:00:15]} 45. Qc4 {[%clk 0:00:28]}  Qd6 {[%clk 0:00:15]} 46. Qa4 {[%clk 0:00:26]}  Qd7 {[%clk 0:00:14]} 47. Re3 {[%clk 0:00:20]}  Re5 {[%clk 0:00:10]} 48. Rxe5 {[%clk 0:00:19]}  fxe5 {[%clk 0:00:11]} 49. Qe4 {[%clk 0:00:17]}  Qd5 {[%clk 0:00:11]} 50. Kf3 {[%clk 0:00:17]}  Kf6 {[%clk 0:00:11]} 51. c4 {[%clk 0:00:18]}  Qd1+ {[%clk 0:00:10]} 52. Kg2 {[%clk 0:00:16]}  Qd7 {[%clk 0:00:09]} 53. Qc2 {[%clk 0:00:13]}  Qe6 {[%clk 0:00:08]} 54. Qh7 {[%clk 0:00:12]}  Qxc4 {[%clk 0:00:06]} 55. Qh6+ {[%clk 0:00:12]}  Kf7 {[%clk 0:00:05]} 56. Qxg5 {[%clk 0:00:12]}  Qe4+ {[%clk 0:00:06]} 57. Kg1 {[%clk 0:00:12]}  Qe1+ {[%clk 0:00:05]} 58. Kg2 {[%clk 0:00:12]}  Qe4+ {[%clk 0:00:06]} 59. Kh2 {[%clk 0:00:10]}  Qf4+ {[%clk 0:00:03]} 60. Qxf4+ {[%clk 0:00:09]}  exf4 {[%clk 0:00:04]} 61. Kg2 {[%clk 0:00:10]}  c5 {[%clk 0:00:03]} 62. Kf3 {[%clk 0:00:11]}  Ke6 {[%clk 0:00:03]} 63. Kxf4 {[%clk 0:00:11]}  Kd5 {[%clk 0:00:03]} 64. Ke3 {[%clk 0:00:11]}  Kc4 {[%clk 0:00:03]} 65. Kd2 {[%clk 0:00:11]}  Kb3 {[%clk 0:00:03]} 66. Kc1 {[%clk 0:00:11]}  Kc4 {[%clk 0:00:04]} 67. f4 {[%clk 0:00:11]}  Kd5 {[%clk 0:00:04]} 68. f5 {[%clk 0:00:11]}  Ke5 {[%clk 0:00:04]} 69. Kc2 {[%clk 0:00:11]}  Kf4 {[%clk 0:00:02]} 70. f6 {[%clk 0:00:11]}  Kg3 {[%clk 0:00:03]} 71. f7 {[%clk 0:00:12]}  Kxh3 {[%clk 0:00:04]} 72. f8=Q {[%clk 0:00:11]}  Kg2 {[%clk 0:00:04]} 73. Qa8+ {[%clk 0:00:10]}  Kg3 {[%clk 0:00:04]} 74. g5 {[%clk 0:00:11]}  h3 {[%clk 0:00:04]} 75. g6 {[%clk 0:00:11]}  Kh2 {[%clk 0:00:04]} 76. Qf3 {[%clk 0:00:11]}  c4 {[%clk 0:00:05]} 77. g7 {[%clk 0:00:11]}  c3 {[%clk 0:00:06]} 78. Kxc3 {[%clk 0:00:10]}  Kg1 {[%clk 0:00:06]} 79. g8=Q+ {[%clk 0:00:10]}  Kh2 {[%clk 0:00:07]} 80. Qgg3# {[%clk 0:00:10]} 1-0


[Site "https://www.chess.com"]

[Event "Titled Tuesday Blitz May 4 2021"]
[White "Pinto, Daniel"]
[Black "Mortazavi, Ali"]
[WhiteFideId "3303144"]
[BlackFideId "401323"]
[WhiteElo "1936"]
[BlackElo "2339"]
[Result "0-1"]
[Round "11"]
[TimeControl "180+1"]
[Date "2021.05.04"]
[WhiteClock "0:00:04"]
[BlackClock "0:00:37"]

1. e4 {[%clk 0:02:58]}  c6 {[%clk 0:02:58]} 2. Nf3 {[%clk 0:02:58]}  d5 {[%clk 0:02:58]} 3. Nc3 {[%clk 0:02:58]}  dxe4 {[%clk 0:02:58]} 4. Nxe4 {[%clk 0:02:58]}  Nf6 {[%clk 0:02:59]} 5. Nxf6+ {[%clk 0:02:55]}  exf6 {[%clk 0:03:00]} 6. d4 {[%clk 0:02:56]}  Bd6 {[%clk 0:03:01]} 7. Bd3 {[%clk 0:02:50]}  O-O {[%clk 0:03:00]} 8. O-O {[%clk 0:02:50]}  Bg4 {[%clk 0:03:01]} 9. h3 {[%clk 0:02:51]}  Bh5 {[%clk 0:03:01]} 10. c3 {[%clk 0:02:49]}  Re8 {[%clk 0:03:01]} 11. g4 {[%clk 0:02:43]}  Bg6 {[%clk 0:03:00]} 12. Nh4 {[%clk 0:02:43]}  Nd7 {[%clk 0:02:50]} 13. f4 {[%clk 0:02:31]}  Bxd3 {[%clk 0:02:49]} 14. Qxd3 {[%clk 0:02:32]}  Bf8 {[%clk 0:02:34]} 15. Bd2 {[%clk 0:02:09]}  g6 {[%clk 0:02:32]} 16. f5 {[%clk 0:02:01]}  g5 {[%clk 0:02:06]} 17. Nf3 {[%clk 0:02:00]}  Nc5 {[%clk 0:02:05]} 18. Qc2 {[%clk 0:01:47]}  Ne4 {[%clk 0:02:02]} 19. Rae1 {[%clk 0:01:01]}  Nxd2 {[%clk 0:01:40]} 20. Qxd2 {[%clk 0:01:01]}  Qd5 {[%clk 0:01:34]} 21. b3 {[%clk 0:00:49]}  b5 {[%clk 0:01:32]} 22. Kf2 {[%clk 0:00:36]}  Bd6 {[%clk 0:01:28]} 23. Nxg5 {[%clk 0:00:23]}  a5 {[%clk 0:00:48]} 24. Nf3 {[%clk 0:00:18]}  a4 {[%clk 0:00:49]} 25. b4 {[%clk 0:00:14]}  a3 {[%clk 0:00:48]} 26. Rxe8+ {[%clk 0:00:10]}  Rxe8 {[%clk 0:00:48]} 27. Rg1 {[%clk 0:00:11]}  Re4 {[%clk 0:00:38]} 28. g5 {[%clk 0:00:10]}  Bf4 {[%clk 0:00:38]} 29. gxf6+ {[%clk 0:00:09]}  Kf8 {[%clk 0:00:37]} 30. Qc2 {[%clk 0:00:04]}  Re3 {[%clk 0:00:37]} 0-1


[Site "https://www.chess.com"]

[Event "Titled Tuesday Blitz May 4 2021"]
[White "Porter, Ryan W"]
[Black "Mohota, Nisha"]
[WhiteFideId "2011239"]
[BlackFideId "5004330"]
[WhiteElo "2377"]
[BlackElo "2117"]
[Result "0-1"]
[Round "11"]
[TimeControl "180+1"]
[Date "2021.05.04"]
[WhiteClock "0:00:04"]
[BlackClock "0:00:10"]

1. c4 {[%clk 0:03:00]}  e5 {[%clk 0:02:59]} 2. Nc3 {[%clk 0:03:00]}  Nf6 {[%clk 0:02:59]} 3. Nf3 {[%clk 0:02:59]}  Nc6 {[%clk 0:02:59]} 4. e3 {[%clk 0:02:59]}  Bb4 {[%clk 0:02:56]} 5. Qc2 {[%clk 0:02:59]}  Bxc3 {[%clk 0:02:56]} 6. Qxc3 {[%clk 0:02:59]}  Qe7 {[%clk 0:02:53]} 7. d4 {[%clk 0:02:57]}  Ne4 {[%clk 0:02:47]} 8. Qd3 {[%clk 0:02:57]}  exd4 {[%clk 0:02:45]} 9. Nxd4 {[%clk 0:02:56]}  Nb4 {[%clk 0:02:23]} 10. Qd1 {[%clk 0:02:36]}  O-O {[%clk 0:02:03]} 11. Be2 {[%clk 0:02:33]}  d5 {[%clk 0:01:59]} 12. a3 {[%clk 0:02:28]}  c5 {[%clk 0:01:38]} 13. Nf3 {[%clk 0:02:15]}  Na6 {[%clk 0:01:31]} 14. Qxd5 {[%clk 0:02:09]}  Rd8 {[%clk 0:01:25]} 15. Qe5 {[%clk 0:02:09]}  Qxe5 {[%clk 0:01:18]} 16. Nxe5 {[%clk 0:02:10]}  Be6 {[%clk 0:01:17]} 17. f3 {[%clk 0:01:54]}  f6 {[%clk 0:01:12]} 18. Nd3 {[%clk 0:01:38]}  Bxc4 {[%clk 0:01:12]} 19. Nf4 {[%clk 0:01:15]}  Bxe2 {[%clk 0:01:11]} 20. Kxe2 {[%clk 0:01:16]}  Nd6 {[%clk 0:01:09]} 21. Bd2 {[%clk 0:01:14]}  Nc4 {[%clk 0:01:01]} 22. Bc3 {[%clk 0:01:15]}  Re8 {[%clk 0:01:01]} 23. Nd5 {[%clk 0:01:03]}  Rad8 {[%clk 0:00:56]} 24. Rad1 {[%clk 0:01:01]}  Nb8 {[%clk 0:00:37]} 25. Ne7+ {[%clk 0:00:49]}  Kf7 {[%clk 0:00:37]} 26. Rxd8 {[%clk 0:00:49]}  Rxd8 {[%clk 0:00:36]} 27. Nf5 {[%clk 0:00:49]}  Nc6 {[%clk 0:00:31]} 28. Rd1 {[%clk 0:00:35]}  Rxd1 {[%clk 0:00:30]} 29. Kxd1 {[%clk 0:00:35]}  g6 {[%clk 0:00:31]} 30. Nh6+ {[%clk 0:00:35]}  Kg7 {[%clk 0:00:31]} 31. Ng4 {[%clk 0:00:34]}  N6e5 {[%clk 0:00:29]} 32. Nxe5 {[%clk 0:00:25]}  fxe5 {[%clk 0:00:29]} 33. Ke2 {[%clk 0:00:14]}  Kf6 {[%clk 0:00:29]} 34. a4 {[%clk 0:00:14]}  Ke6 {[%clk 0:00:26]} 35. Kd3 {[%clk 0:00:13]}  Nb6 {[%clk 0:00:20]} 36. b3 {[%clk 0:00:12]}  Nd5 {[%clk 0:00:19]} 37. Bd2 {[%clk 0:00:11]}  b6 {[%clk 0:00:18]} 38. e4 {[%clk 0:00:11]}  Ne7 {[%clk 0:00:17]} 39. Kc4 {[%clk 0:00:11]}  a6 {[%clk 0:00:16]} 40. a5 {[%clk 0:00:09]}  bxa5 {[%clk 0:00:14]} 41. Kxc5 {[%clk 0:00:09]}  Nc8 {[%clk 0:00:14]} 42. Bxa5 {[%clk 0:00:08]}  g5 {[%clk 0:00:12]} 43. Kc6 {[%clk 0:00:07]}  h5 {[%clk 0:00:11]} 44. Bb4 {[%clk 0:00:06]}  Na7+ {[%clk 0:00:10]} 45. Kb7 {[%clk 0:00:04]}  Nb5 {[%clk 0:00:10]} 0-1


[Site "https://www.chess.com"]

[Event "Titled Tuesday Blitz May 4 2021"]
[White "Preotu, Razvan"]
[Black "Sztokbant, Bernardo Vainzoff"]
[WhiteFideId "2613280"]
[BlackFideId "2115956"]
[WhiteElo "2407"]
[BlackElo "2264"]
[Result "1-0"]
[Round "11"]
[TimeControl "180+1"]
[Date "2021.05.04"]
[WhiteClock "0:00:28"]
[BlackClock "0:00:02"]

1. e4 {[%clk 0:03:00]}  c5 {[%clk 0:02:55]} 2. Nf3 {[%clk 0:03:01]}  d6 {[%clk 0:02:55]} 3. d4 {[%clk 0:03:00]}  cxd4 {[%clk 0:02:55]} 4. Nxd4 {[%clk 0:03:01]}  Nf6 {[%clk 0:02:56]} 5. Nc3 {[%clk 0:03:02]}  a6 {[%clk 0:02:55]} 6. Be2 {[%clk 0:03:02]}  e5 {[%clk 0:02:55]} 7. Nb3 {[%clk 0:03:03]}  Be7 {[%clk 0:02:51]} 8. O-O {[%clk 0:03:03]}  O-O {[%clk 0:02:48]} 9. Be3 {[%clk 0:03:03]}  Be6 {[%clk 0:02:46]} 10. Nd5 {[%clk 0:03:03]}  Nxd5 {[%clk 0:02:42]} 11. exd5 {[%clk 0:03:03]}  Bf5 {[%clk 0:02:42]} 12. c4 {[%clk 0:02:49]}  Nd7 {[%clk 0:02:41]} 13. Bd3 {[%clk 0:02:43]}  Bg6 {[%clk 0:02:36]} 14. Qd2 {[%clk 0:02:39]}  f5 {[%clk 0:02:31]} 15. f4 {[%clk 0:02:32]}  Bf6 {[%clk 0:02:24]} 16. Rae1 {[%clk 0:02:28]}  Qc7 {[%clk 0:02:20]} 17. Na5 {[%clk 0:02:08]}  Nc5 {[%clk 0:02:10]} 18. Bb1 {[%clk 0:02:06]}  Rae8 {[%clk 0:02:06]} 19. b4 {[%clk 0:02:06]}  Nd7 {[%clk 0:01:56]} 20. Rc1 {[%clk 0:02:03]}  Kh8 {[%clk 0:01:34]} 21. c5 {[%clk 0:01:54]}  exf4 {[%clk 0:01:24]} 22. Bxf4 {[%clk 0:01:51]}  Ne5 {[%clk 0:01:25]} 23. Kh1 {[%clk 0:01:11]}  dxc5 {[%clk 0:01:12]} 24. bxc5 {[%clk 0:01:12]}  Qd7 {[%clk 0:01:11]} 25. c6 {[%clk 0:00:58]}  bxc6 {[%clk 0:01:10]} 26. dxc6 {[%clk 0:00:59]}  Qxd2 {[%clk 0:01:08]} 27. Bxd2 {[%clk 0:01:00]}  Rc8 {[%clk 0:00:45]} 28. Bxf5 {[%clk 0:00:59]}  Bxf5 {[%clk 0:00:32]} 29. Rxf5 {[%clk 0:00:59]}  Nd3 {[%clk 0:00:25]} 30. Rcf1 {[%clk 0:00:44]}  Rfe8 {[%clk 0:00:22]} 31. g4 {[%clk 0:00:37]}  Kg8 {[%clk 0:00:17]} 32. g5 {[%clk 0:00:36]}  Bd4 {[%clk 0:00:09]} 33. Rd5 {[%clk 0:00:31]}  Nf2+ {[%clk 0:00:03]} 34. Kg2 {[%clk 0:00:31]}  Bb6 {[%clk 0:00:03]} 35. Rxf2 {[%clk 0:00:30]}  Bxf2 {[%clk 0:00:03]} 36. Kxf2 {[%clk 0:00:31]}  Rf8+ {[%clk 0:00:03]} 37. Kg3 {[%clk 0:00:31]}  Rfe8 {[%clk 0:00:03]} 38. Bf4 {[%clk 0:00:30]}  Re2 {[%clk 0:00:03]} 39. c7 {[%clk 0:00:30]}  Kf7 {[%clk 0:00:04]} 40. Rd8 {[%clk 0:00:29]}  Re8 {[%clk 0:00:03]} 41. Nc6 {[%clk 0:00:28]}  Ke6 {[%clk 0:00:02]} 42. Rxc8 {[%clk 0:00:28]}  Rxc8 {[%clk 0:00:02]} 43. Na7 {[%clk 0:00:28]}  Kd7 {[%clk 0:00:01]} 44. Nxc8 {[%clk 0:00:28]}  Kxc8 {[%clk 0:00:02]} 1-0


[Site "https://www.chess.com"]

[Event "Titled Tuesday Blitz May 4 2021"]
[White "Ptacnikova, Lenka"]
[Black "Torkkola, Henri"]
[WhiteFideId "305650"]
[BlackFideId "507660"]
[WhiteElo "1984"]
[BlackElo "2137"]
[Result "1-0"]
[Round "11"]
[TimeControl "180+1"]
[Date "2021.05.04"]
[WhiteClock "0:00:06"]
[BlackClock "0:00:18"]

1. g4 {[%clk 0:02:42]}  g6 {[%clk 0:03:00]} 2. h4 {[%clk 0:02:40]}  h6 {[%clk 0:02:57]} 3. Bg2 {[%clk 0:02:39]}  c6 {[%clk 0:02:57]} 4. e4 {[%clk 0:02:36]}  e5 {[%clk 0:02:55]} 5. d4 {[%clk 0:02:34]}  d6 {[%clk 0:02:54]} 6. dxe5 {[%clk 0:02:29]}  dxe5 {[%clk 0:02:54]} 7. Qxd8+ {[%clk 0:02:29]}  Kxd8 {[%clk 0:02:55]} 8. Nd2 {[%clk 0:02:24]}  Bxg4 {[%clk 0:02:54]} 9. Nc4 {[%clk 0:02:23]}  Bg7 {[%clk 0:02:50]} 10. Be3 {[%clk 0:02:23]}  Kc7 {[%clk 0:02:41]} 11. Nf3 {[%clk 0:02:22]}  Bxf3 {[%clk 0:02:39]} 12. Bxf3 {[%clk 0:02:21]}  b5 {[%clk 0:02:25]} 13. Na5 {[%clk 0:02:14]}  h5 {[%clk 0:02:21]} 14. Rd1 {[%clk 0:02:03]}  Bh6 {[%clk 0:02:20]} 15. Bc5 {[%clk 0:02:03]}  Nd7 {[%clk 0:02:11]} 16. Bd6+ {[%clk 0:01:50]}  Kb6 {[%clk 0:02:11]} 17. b4 {[%clk 0:01:50]}  Ngf6 {[%clk 0:02:09]} 18. c4 {[%clk 0:01:46]}  Rac8 {[%clk 0:01:50]} 19. c5+ {[%clk 0:01:40]}  Ka6 {[%clk 0:01:50]} 20. a4 {[%clk 0:01:37]}  Bf8 {[%clk 0:01:38]} 21. Be2 {[%clk 0:01:13]}  Bxd6 {[%clk 0:01:23]} 22. axb5+ {[%clk 0:01:02]}  cxb5 {[%clk 0:01:23]} 23. Rxd6+ {[%clk 0:00:59]}  Nb6 {[%clk 0:01:21]} 24. Rxf6 {[%clk 0:00:55]}  Rhd8 {[%clk 0:01:16]} 25. cxb6 {[%clk 0:00:37]}  axb6 {[%clk 0:01:17]} 26. Nc6 {[%clk 0:00:35]}  Rd7 {[%clk 0:01:08]} 27. Nxe5 {[%clk 0:00:26]}  Rd4 {[%clk 0:01:06]} 28. f3 {[%clk 0:00:21]}  Rxb4 {[%clk 0:01:03]} 29. Kf2 {[%clk 0:00:21]}  Ra4 {[%clk 0:00:58]} 30. Rb1 {[%clk 0:00:20]}  Ra2 {[%clk 0:00:53]} 31. Ke3 {[%clk 0:00:17]}  Rc3+ {[%clk 0:00:49]} 32. Kd4 {[%clk 0:00:15]}  Rc5 {[%clk 0:00:39]} 33. Bd3 {[%clk 0:00:13]}  Ra4+ {[%clk 0:00:35]} 34. Ke3 {[%clk 0:00:12]}  Rxe5 {[%clk 0:00:36]} 35. Rb2 {[%clk 0:00:11]}  Rc5 {[%clk 0:00:33]} 36. Rb3 {[%clk 0:00:11]}  Rc1 {[%clk 0:00:31]} 37. Rxf7 {[%clk 0:00:11]}  Ra5 {[%clk 0:00:26]} 38. Re7 {[%clk 0:00:10]}  Rh1 {[%clk 0:00:25]} 39. Re5 {[%clk 0:00:09]}  Rxh4 {[%clk 0:00:24]} 40. Bxb5+ {[%clk 0:00:09]}  Kb7 {[%clk 0:00:24]} 41. Rd3 {[%clk 0:00:08]}  Rxb5 {[%clk 0:00:12]} 42. Rxb5 {[%clk 0:00:07]}  Kc6 {[%clk 0:00:13]} 43. Rdb3 {[%clk 0:00:07]}  Rh1 {[%clk 0:00:14]} 44. Rxb6+ {[%clk 0:00:07]}  Kc5 {[%clk 0:00:15]} 45. Rxg6 {[%clk 0:00:07]}  h4 {[%clk 0:00:14]} 46. Rd3 {[%clk 0:00:05]}  h3 {[%clk 0:00:15]} 47. Rd5+ {[%clk 0:00:06]}  Kc4 {[%clk 0:00:15]} 48. Rh5 {[%clk 0:00:06]}  h2 {[%clk 0:00:15]} 49. Rgh6 {[%clk 0:00:07]}  Re1+ {[%clk 0:00:14]} 50. Kf4 {[%clk 0:00:08]}  Ra1 {[%clk 0:00:15]} 51. Rxh2 {[%clk 0:00:07]}  Kd4 {[%clk 0:00:16]} 52. Rd2+ {[%clk 0:00:07]}  Kc3 {[%clk 0:00:16]} 53. Rd5 {[%clk 0:00:08]}  Ra8 {[%clk 0:00:16]} 54. Rc6+ {[%clk 0:00:08]}  Kb4 {[%clk 0:00:17]} 55. Ke3 {[%clk 0:00:07]}  Rf8 {[%clk 0:00:17]} 56. Rd1 {[%clk 0:00:07]}  Rh8 {[%clk 0:00:18]} 57. Rb1+ {[%clk 0:00:07]}  Ka5 {[%clk 0:00:19]} 58. Rc7 {[%clk 0:00:07]}  Ra8 {[%clk 0:00:18]} 59. Rc2 {[%clk 0:00:06]}  Rb8 {[%clk 0:00:18]} 60. Ra2# {[%clk 0:00:06]} 1-0


[Site "https://www.chess.com"]

[Event "Titled Tuesday Blitz May 4 2021"]
[White "Quintiliano Pinto, Renato R."]
[Black "Villegas, Pierre"]
[WhiteFideId "2117568"]
[BlackFideId "654183"]
[WhiteElo "2439"]
[BlackElo "2411"]
[Result "1/2-1/2"]
[Round "11"]
[TimeControl "180+1"]
[Date "2021.05.04"]
[WhiteClock "0:00:39"]
[BlackClock "0:00:42"]

1. d4 {[%clk 0:03:00]}  d5 {[%clk 0:02:59]} 2. c4 {[%clk 0:03:00]}  e6 {[%clk 0:02:59]} 3. Nc3 {[%clk 0:02:59]}  a6 {[%clk 0:02:59]} 4. cxd5 {[%clk 0:02:59]}  exd5 {[%clk 0:03:00]} 5. Bf4 {[%clk 0:02:59]}  Nf6 {[%clk 0:03:01]} 6. e3 {[%clk 0:02:59]}  c5 {[%clk 0:03:01]} 7. dxc5 {[%clk 0:02:58]}  Bxc5 {[%clk 0:03:02]} 8. Nf3 {[%clk 0:02:58]}  Nc6 {[%clk 0:03:02]} 9. Be2 {[%clk 0:02:57]}  O-O {[%clk 0:03:02]} 10. O-O {[%clk 0:02:58]}  d4 {[%clk 0:03:02]} 11. exd4 {[%clk 0:02:46]}  Nxd4 {[%clk 0:03:03]} 12. Nxd4 {[%clk 0:02:47]}  Qxd4 {[%clk 0:03:03]} 13. Qxd4 {[%clk 0:02:45]}  Bxd4 {[%clk 0:03:04]} 14. Bf3 {[%clk 0:02:46]}  Bg4 {[%clk 0:03:04]} 15. Bxb7 {[%clk 0:02:44]}  Ra7 {[%clk 0:03:03]} 16. Bc6 {[%clk 0:02:32]}  Rc8 {[%clk 0:02:54]} 17. Ba4 {[%clk 0:02:31]}  Bxc3 {[%clk 0:02:36]} 18. bxc3 {[%clk 0:02:32]}  Nd5 {[%clk 0:02:33]} 19. Be5 {[%clk 0:02:21]}  Nxc3 {[%clk 0:02:32]} 20. Bb3 {[%clk 0:02:20]}  Re7 {[%clk 0:02:12]} 21. Bd6 {[%clk 0:02:13]}  Rd7 {[%clk 0:02:11]} 22. Bb4 {[%clk 0:02:09]}  Ne2+ {[%clk 0:02:01]} 23. Kh1 {[%clk 0:02:08]}  Be6 {[%clk 0:01:57]} 24. Rfe1 {[%clk 0:01:42]}  Nd4 {[%clk 0:01:50]} 25. Bxe6 {[%clk 0:01:29]}  Nxe6 {[%clk 0:01:51]} 26. Rac1 {[%clk 0:01:22]}  Rdc7 {[%clk 0:01:40]} 27. Rxc7 {[%clk 0:01:20]}  Rxc7 {[%clk 0:01:41]} 28. Kg1 {[%clk 0:01:20]}  Rc2 {[%clk 0:01:37]} 29. a3 {[%clk 0:01:20]}  h5 {[%clk 0:01:26]} 30. h3 {[%clk 0:01:20]}  Nd4 {[%clk 0:00:50]} 31. Re4 {[%clk 0:00:47]}  Rc1+ {[%clk 0:00:43]} 32. Kh2 {[%clk 0:00:46]}  Nc6 {[%clk 0:00:43]} 33. Re8+ {[%clk 0:00:37]}  Kh7 {[%clk 0:00:43]} 34. Ra8 {[%clk 0:00:38]}  Nxb4 {[%clk 0:00:42]} 35. axb4 {[%clk 0:00:39]}  Rb1 {[%clk 0:00:42]} 36. Rxa6 {[%clk 0:00:39]}  Rxb4 {[%clk 0:00:42]} 37. Ra2 {[%clk 0:00:39]} 1/2-1/2


[Site "https://www.chess.com"]

[Event "Titled Tuesday Blitz May 4 2021"]
[White "Real De Azua, Ernesto"]
[Black "Vignesh, N R"]
[WhiteFideId "108154"]
[BlackFideId "25012215"]
[WhiteElo "2476"]
[BlackElo "2401"]
[Result "0-1"]
[Round "11"]
[TimeControl "180+1"]
[Date "2021.05.04"]
[WhiteClock "0:00:05"]
[BlackClock "0:00:15"]

1. d4 {[%clk 0:03:00]}  Nf6 {[%clk 0:02:59]} 2. c4 {[%clk 0:03:01]}  e6 {[%clk 0:03:00]} 3. Nc3 {[%clk 0:02:57]}  Bb4 {[%clk 0:02:59]} 4. e3 {[%clk 0:02:57]}  O-O {[%clk 0:02:59]} 5. Bd2 {[%clk 0:02:57]}  c5 {[%clk 0:02:52]} 6. a3 {[%clk 0:02:45]}  Bxc3 {[%clk 0:02:50]} 7. Bxc3 {[%clk 0:02:46]}  Ne4 {[%clk 0:02:51]} 8. Rc1 {[%clk 0:02:44]}  b6 {[%clk 0:02:45]} 9. Nf3 {[%clk 0:02:37]}  Bb7 {[%clk 0:02:45]} 10. Bd3 {[%clk 0:02:31]}  d6 {[%clk 0:02:44]} 11. O-O {[%clk 0:02:29]}  Nd7 {[%clk 0:02:43]} 12. Bxe4 {[%clk 0:02:15]}  Bxe4 {[%clk 0:02:42]} 13. Nd2 {[%clk 0:02:15]}  Bb7 {[%clk 0:02:41]} 14. f3 {[%clk 0:02:13]}  Rc8 {[%clk 0:02:37]} 15. Qe2 {[%clk 0:02:08]}  Re8 {[%clk 0:02:36]} 16. e4 {[%clk 0:02:03]}  cxd4 {[%clk 0:02:16]} 17. Bxd4 {[%clk 0:02:02]}  d5 {[%clk 0:02:12]} 18. cxd5 {[%clk 0:01:13]}  exd5 {[%clk 0:02:08]} 19. Rxc8 {[%clk 0:00:42]}  Qxc8 {[%clk 0:02:07]} 20. Qe3 {[%clk 0:00:42]}  dxe4 {[%clk 0:01:32]} 21. fxe4 {[%clk 0:00:42]}  Qc2 {[%clk 0:01:26]} 22. Bc3 {[%clk 0:00:34]}  f6 {[%clk 0:01:08]} 23. Qg3 {[%clk 0:00:23]}  Bxe4 {[%clk 0:01:00]} 24. Qg4 {[%clk 0:00:17]}  Qd3 {[%clk 0:00:51]} 25. h3 {[%clk 0:00:15]}  Bg6 {[%clk 0:00:42]} 26. Rf3 {[%clk 0:00:14]}  Qd5 {[%clk 0:00:40]} 27. Qg3 {[%clk 0:00:08]}  Nc5 {[%clk 0:00:33]} 28. Re3 {[%clk 0:00:08]}  Rxe3 {[%clk 0:00:29]} 29. Qxe3 {[%clk 0:00:08]}  h5 {[%clk 0:00:30]} 30. Qe7 {[%clk 0:00:05]}  Na4 {[%clk 0:00:20]} 31. Qe3 {[%clk 0:00:05]}  Nxc3 {[%clk 0:00:19]} 32. Qxc3 {[%clk 0:00:06]}  Kh7 {[%clk 0:00:19]} 33. Nf3 {[%clk 0:00:06]}  Be4 {[%clk 0:00:19]} 34. Ne1 {[%clk 0:00:04]}  a5 {[%clk 0:00:18]} 35. Qe3 {[%clk 0:00:04]}  Qc5 {[%clk 0:00:17]} 36. Kf2 {[%clk 0:00:05]}  Kg6 {[%clk 0:00:15]} 37. g3 {[%clk 0:00:04]}  Kf5 {[%clk 0:00:15]} 38. Qxc5+ {[%clk 0:00:04]}  bxc5 {[%clk 0:00:14]} 39. Ke3 {[%clk 0:00:04]}  a4 {[%clk 0:00:15]} 40. Kf2 {[%clk 0:00:04]}  Ke5 {[%clk 0:00:15]} 41. Ke3 {[%clk 0:00:04]}  g5 {[%clk 0:00:14]} 42. h4 {[%clk 0:00:04]}  gxh4 {[%clk 0:00:14]} 43. gxh4 {[%clk 0:00:05]}  f5 {[%clk 0:00:15]} 0-1


[Site "https://www.chess.com"]